fUST/lending_fUST_20250203
["ID","MTS","AMOUNT","RATE_DAILY","PERIOD"]
[351439366,1738584641853,-1136.3,0.00016849,2]
[351439368,1738584641863,-151.0,0.00016849,2]
[351439370,1738584641872,-500.0,0.00016849,2]
[351439372,1738584641881,-500.0,0.00016849,2]
[351439374,1738584641891,-500.0,0.00016849,2]
[351439376,1738584641901,-500.0,0.00016849,2]
[351439378,1738584641910,-151.0,0.00016849,2]
[351439380,1738584641920,-1782.95,0.00016849,2]
[351439382,1738584641930,-500.0,0.00016849,2]
[351439384,1738584641938,-500.0,0.00016849,2]
[351439386,1738584641947,-500.0,0.00016849,2]
[351439388,1738584641957,-500.0,0.00016849,2]
[351439390,1738584641966,-500.0,0.00016849,2]
[351439392,1738584641975,-500.0,0.00016849,2]
[351439394,1738584641984,-500.0,0.00016849,2]
[351439396,1738584641994,-1249.85,0.00016849,2]
[351439398,1738584642004,-151.0,0.00016849,2]
[351439400,1738584642013,-500.0,0.00016849,2]
[351439402,1738584642023,-655.65,0.00016849,2]
[351439404,1738584642033,-500.0,0.00016849,2]
[351439407,1738584642044,-535.36,0.00016849,2]
[351439409,1738584642056,-4892.81,0.00016849,2]
[351439411,1738584642070,-362.38,0.00016849,2]
[351439414,1738584642084,-500.0,0.00016849,2]
[351439416,1738584642098,-998.75,0.00016849,2]
[351439419,1738584642112,-500.0,0.00016849,2]
[351439421,1738584642123,-500.0,0.00016849,2]
[351439423,1738584642134,-243.75519469,0.00016849,2]
[351439425,1738584642148,-2407.24,0.00016849,2]
[351439428,1738584642159,-500.0,0.00016849,2]
[351439430,1738584642170,-500.0,0.00016849,2]
[351439432,1738584642182,-500.0,0.00016849,2]
[351439434,1738584642194,-155.96923721,0.000169,2]
[351439437,1738584642207,-501.2113157,0.000169,2]
[351439439,1738584642218,-2300.0,0.00016937,2]
[351439441,1738584642230,-600.16556355,0.00016973,2]
[351439443,1738584642243,-500.0,0.00016985,2]
[351439446,1738584642256,-570.09,0.00016985,2]
[351439448,1738584642268,-151.0,0.00016986,2]
[351439450,1738584642280,-151.0,0.00016986,2]
[351439453,1738584642292,-151.0,0.00016986,2]
[351439455,1738584642303,-151.0,0.00016986,2]
[351439457,1738584642314,-1136.3,0.00016986,2]
[351439459,1738584642326,-151.0,0.00016986,2]
[351439462,1738584642339,-500.0,0.00016986,2]
[351439464,1738584642351,-165.05,0.00016986,2]
[351439466,1738584642362,-500.0,0.00016986,2]
[351439468,1738584642374,-151.0,0.00016986,2]
[351439471,1738584642385,-1782.95,0.00016986,2]
[351439473,1738584642395,-370.12,0.00016986,2]
[351439475,1738584642407,-500.0,0.00016986,2]
[351439477,1738584642418,-500.0,0.00016986,2]
[351439479,1738584642429,-500.0,0.00016986,2]
[351439482,1738584642442,-1249.85,0.00016986,2]
[351439484,1738584642453,-151.0,0.00016986,2]
[351439486,1738584642466,-273.60689034,0.00016986,2]
[351439488,1738584642477,-655.65,0.00016986,2]
[351439491,1738584642490,-500.0,0.00016986,2]
[351439493,1738584642503,-535.36,0.00016986,2]
[351439496,1738584642516,-4892.81,0.00016986,2]
[351439498,1738584642528,-500.0,0.00016986,2]
[351439500,1738584642542,-998.75,0.00016986,2]
[351439502,1738584642552,-561.75,0.00016986,2]
[351439504,1738584642563,-258.94,0.00016986,2]
[351439506,1738584642573,-2407.24,0.00016986,2]
[351439508,1738584642587,-445.27,0.00016986,2]
[351439511,1738584642598,-235.69,0.00016986,2]
[351439513,1738584642611,-160.0,0.00016999,2]
[351439515,1738584642625,-10000.0,0.00017,4]
[351439518,1738584642637,-199.26628118,0.00017,2]
[351439520,1738584642648,-18356.51275456,0.00017,2]
[351439574,1738584643026,-500.0,0.00016438,2]
[351439577,1738584643037,-500.0,0.00016438,2]
[351439581,1738584643048,-500.0,0.00016438,2]
[351439584,1738584643060,-500.0,0.00016438,2]
[351439587,1738584643074,-500.0,0.00016438,2]
[351439591,1738584643085,-500.0,0.00016438,2]
[351439596,1738584643097,-500.0,0.00016438,2]
[351439600,1738584643109,-507.27628623,0.00016438,2]
[351439606,1738584643120,-500.0,0.00016438,2]
[351439609,1738584643132,-500.0,0.00016575,2]
[351439611,1738584643143,-500.0,0.00016575,2]
[351439613,1738584643153,-500.0,0.00016575,2]
[351439615,1738584643163,-500.0,0.00016575,2]
[351439617,1738584643173,-500.0,0.00016575,2]
[351439619,1738584643182,-500.0,0.00016575,2]
[351439621,1738584643192,-252.68,0.00016712,2]
[351439623,1738584643201,-500.0,0.00016712,2]
[351439625,1738584643211,-500.0,0.00016712,2]
[351439628,1738584643220,-202.12,0.00016849,2]
[351439632,1738584643230,-1243911.52829048,0.00017,2]
[351439638,1738584643246,-500.0,0.00016575,2]
[351439642,1738584643256,-20227.20018787,0.00017,2]
[351439647,1738584643268,-3393.27706792,0.00017,2]
[351439654,1738584643333,-500.0,0.00016438,2]
[351439656,1738584643342,-500.0,0.00016438,2]
[351439658,1738584643352,-500.0,0.00016575,2]
[351439661,1738584643361,-500.0,0.00016575,2]
[351439664,1738584643372,-500.0,0.00016712,2]
[351439666,1738584643381,-404.03019968,0.00016712,2]
[351439669,1738584643394,-104.05729296,0.00016712,2]
[351439671,1738584643404,-2359.94270704,0.00017,2]
[351439687,1738584643707,-501.52120276,0.00016438,2]
[351439688,1738584643717,-500.0,0.00016438,2]
[351439689,1738584643726,-500.0,0.00016438,2]
[351439690,1738584643735,-500.0,0.00016438,2]
[351439691,1738584643745,-500.0,0.00016575,2]
[351439692,1738584643754,-419.3,0.00016575,2]
[351439693,1738584643763,-500.0,0.00016575,2]
[351439694,1738584643773,-500.0,0.00016712,2]
[351439696,1738584643783,-10631.39020021,0.00017,2]
[351439698,1738584643794,-43816.29500303,0.00017,2]
[351440020,1738584646602,-501.50289994,0.00016438,2]
[351440022,1738584646614,-500.0,0.00016438,2]
[351440024,1738584646624,-500.0,0.00016438,2]
[351440026,1738584646633,-500.0,0.00016438,2]
[351440028,1738584646643,-500.0,0.00016438,2]
[351440031,1738584646654,-500.0,0.00016438,2]
[351440033,1738584646664,-500.0,0.00016438,2]
[351440035,1738584646675,-388.17,0.00016575,2]
[351440037,1738584646685,-364.44295511,0.00016575,2]
[351440038,1738584646695,-500.0,0.00016575,2]
[351440041,1738584646706,-511.29713324,0.00016712,2]
[351440043,1738584646715,-262679.41216827,0.00017,2]
[351449857,1738585219604,400.0,0.00013973,2]
[351449858,1738585344187,181.248605,0.00013699,2]
[351449859,1738585427863,1000.0,0.00016,17]
[351449866,1738585596758,5000.0,0.00015011,2]
[351449867,1738585612192,5000.0,0.00015011,2]
[351449868,1738585628955,5000.0,0.00015011,2]
[351449885,1738585644595,219.77086407,0.00015011,2]
[351449900,1738585659951,578.64823966,0.00015011,2]
[351449952,1738585750885,5000.0,0.00015011,2]
[351449953,1738585767230,5000.0,0.00015011,2]
[351449962,1738585790714,5000.0,0.00015011,2]
[351449963,1738585798676,247.20638785,0.00015011,2]
[351450091,1738585834121,-300.0,0.00015233,2]
[351450093,1738585834132,-133.8591904,0.00015234,2]
[351450100,1738585834182,-17036.5842975,0.00015234,2]
[351450102,1738585834192,-775.4358803,0.00015343,2]
[351450104,1738585834201,-529.199983,0.0001537,2]
[351450106,1738585834211,-1709.77942815,0.000154,2]
[351450108,1738585834221,-1279.4543003,0.0001557,2]
[351450110,1738585834230,-164.94,0.0001599,2]
[351450112,1738585834240,-164.94,0.0001599,2]
[351450114,1738585834249,-4921.92308288,0.00016,4]
[351450116,1738585834261,-5078.07691712,0.00016,4]
[351450118,1738585834271,-162.792,0.0001615,2]
[351450120,1738585834280,-353.43989995,0.00016238,2]
[351450122,1738585834290,-219.84122698,0.00016338,2]
[351450124,1738585834299,-4812.69369225,0.000164,2]
[351450126,1738585834308,-164.94,0.00016427,2]
[351450128,1738585834318,-164.94,0.00016427,2]
[351450130,1738585834330,-164.94,0.00016427,2]
[351450133,1738585834340,-500.0,0.00016437,2]
[351450135,1738585834350,-206.74762007,0.00016437,2]
[351450136,1738585834359,-536.61009266,0.00016437,2]
[351450139,1738585834369,-500.0,0.00016437,2]
[351450141,1738585834379,-500.0,0.00016437,2]
[351450143,1738585834389,-284.10605221,0.00016437,2]
[351450145,1738585834398,-268.2324444,0.00016437,2]
[351450147,1738585834408,-500.0,0.00016437,2]
[351450149,1738585834418,-500.0,0.00016437,2]
[351450151,1738585834428,-500.0,0.00016437,2]
[351450153,1738585834437,-519.06120247,0.00016437,2]
[351450155,1738585834447,-500.0,0.00016437,2]
[351450157,1738585834457,-500.0,0.00016437,2]
[351450159,1738585834466,-275.7369967,0.00016437,2]
[351450161,1738585834476,-404.4119749,0.00016437,2]
[351450163,1738585834486,-284.02982278,0.00016437,2]
[351450165,1738585834496,-500.0,0.00016437,2]
[351450167,1738585834505,-500.0,0.00016437,2]
[351450169,1738585834515,-500.0,0.00016437,2]
[351450171,1738585834526,-500.0,0.00016437,2]
[351450173,1738585834536,-500.0,0.00016437,2]
[351450175,1738585834545,-395.03417916,0.00016437,2]
[351450177,1738585834555,-500.0,0.00016437,2]
[351450179,1738585834564,-152.25965574,0.00016437,2]
[351450180,1738585834573,-437.4073381,0.00016437,2]
[351450182,1738585834585,-500.0,0.00016437,2]
[351450185,1738585834595,-500.0,0.00016437,2]
[351450187,1738585834604,-500.0,0.00016437,2]
[351450188,1738585834614,-500.0,0.00016437,2]
[351450191,1738585834623,-500.0,0.00016437,2]
[351450192,1738585834633,-500.0,0.00016437,2]
[351450195,1738585834643,-180.5798634,0.00016437,2]
[351450197,1738585834653,-500.0,0.00016437,2]
[351450199,1738585834663,-500.0,0.00016437,2]
[351450201,1738585834672,-436.39942374,0.00016437,2]
[351450203,1738585834682,-191.32141955,0.00016437,2]
[351450205,1738585834692,-151.0,0.00016438,2]
[351450207,1738585834701,-500.0,0.00016438,2]
[351450209,1738585834711,-77.18457792,0.00016438,2]
[351450211,1738585834723,-409.04811194,0.00016438,2]
[351450213,1738585834734,-127.70212,0.00016438,2]
[351450215,1738585834744,-500.0,0.00016438,2]
[351450217,1738585834753,-336.14788,0.00016438,2]
[351450219,1738585834764,-163.85212,0.00016438,2]
[351450221,1738585834773,-500.0,0.00016438,2]
[351450224,1738585834787,-77.458878,0.00016438,2]
[351450557,1738585838734,-423.70569903,0.00016438,2]
[351450558,1738585838745,-500.0,0.00016438,2]
[351450559,1738585838757,-500.0,0.00016438,2]
[351450560,1738585838768,-647.54424529,0.00016438,2]
[351450561,1738585838779,-500.0,0.00016438,2]
[351450562,1738585838791,-500.0,0.00016438,2]
[351450563,1738585838802,-418.68412428,0.00016438,2]
[351450564,1738585838813,-514.38218086,0.00016438,2]
[351450565,1738585838824,-502.3526413,0.00016438,2]
[351450566,1738585838837,-500.0,0.00016438,2]
[351450567,1738585838848,-498.49666282,0.00016438,2]
[351450568,1738585838860,-500.0,0.00016438,2]
[351450569,1738585838871,-501.12265967,0.00016438,2]
[351450571,1738585838882,-500.0,0.00016438,2]
[351450573,1738585838893,-562.19572288,0.00016438,2]
[351450574,1738585838904,-500.0,0.00016438,2]
[351450575,1738585838915,-500.0,0.00016438,2]
[351450576,1738585838926,-500.0,0.00016438,2]
[351450577,1738585838938,-500.0,0.00016438,2]
[351450578,1738585838949,-500.0,0.00016438,2]
[351450579,1738585838960,-500.0,0.00016438,2]
[351450580,1738585838971,-198.24497655,0.00016438,2]
[351450581,1738585838983,-500.0,0.00016438,2]
[351450582,1738585838995,-500.87462917,0.00016438,2]
[351450583,1738585839006,-500.0,0.00016438,2]
[351450584,1738585839017,-500.0,0.00016438,2]
[351450585,1738585839028,-500.0,0.00016438,2]
[351450586,1738585839039,-500.0,0.00016438,2]
[351450587,1738585839050,-502.56277619,0.00016438,2]
[351450588,1738585839062,-598.07911379,0.00016438,2]
[351450589,1738585839073,-500.0,0.00016438,2]
[351450590,1738585839085,-186.28280467,0.00016438,2]
[351450591,1738585839096,-500.0,0.00016438,2]
[351450592,1738585839107,-500.0,0.00016438,2]
[351450593,1738585839117,-500.59208708,0.00016438,2]
[351450594,1738585839128,-500.0,0.00016438,2]
[351450595,1738585839140,-500.0,0.00016438,2]
[351450596,1738585839151,-500.0,0.00016438,2]
[351450597,1738585839161,-500.0,0.00016438,2]
[351450598,1738585839173,-500.0,0.00016438,2]
[351450599,1738585839184,-300.62987004,0.00016438,2]
[351450600,1738585839195,-500.0,0.00016438,2]
[351450601,1738585839206,-500.0,0.00016438,2]
[351450602,1738585839218,-500.95602206,0.00016438,2]
[351450603,1738585839228,-500.0,0.00016438,2]
[351450604,1738585839239,-500.0,0.00016438,2]
[351450605,1738585839250,-500.0,0.00016438,2]
[351450606,1738585839261,-501.20345756,0.00016438,2]
[351450607,1738585839272,-500.0,0.00016438,2]
[351450608,1738585839282,-390.48107876,0.00016438,2]
[351450609,1738585839442,-500.0,0.00016438,2]
[351450610,1738585839462,-500.0,0.00016438,2]
[351450611,1738585839472,-500.94136165,0.00016438,2]
[351450612,1738585839481,-500.0,0.00016438,2]
[351450613,1738585839491,-500.0,0.00016438,2]
[351450614,1738585839500,-500.77340113,0.00016438,2]
[351450615,1738585839510,-500.0,0.00016438,2]
[351450616,1738585839519,-500.0,0.00016438,2]
[351450617,1738585839529,-500.0,0.00016438,2]
[351450618,1738585839539,-501.40220244,0.00016438,2]
[351450619,1738585839548,-500.0,0.00016438,2]
[351450620,1738585839558,-500.0,0.00016438,2]
[351450621,1738585839567,-500.0,0.00016438,2]
[351450622,1738585839576,-504.22762215,0.00016438,2]
[351450624,1738585839587,-500.0,0.00016438,2]
[351450625,1738585839596,-501.22993,0.00016438,2]
[351450626,1738585839605,-500.0,0.00016438,2]
[351450627,1738585839615,-500.0,0.00016438,2]
[351450628,1738585839624,-500.0,0.00016438,2]
[351450629,1738585839633,-501.65081813,0.00016438,2]
[351450630,1738585839642,-500.82314656,0.00016438,2]
[351450631,1738585839651,-500.0,0.00016438,2]
[351450632,1738585839660,-500.0,0.00016438,2]
[351450633,1738585839670,-500.0,0.00016438,2]
[351450634,1738585839690,-500.0,0.00016438,2]
[351450635,1738585839700,-500.0,0.00016438,2]
[351450636,1738585839710,-500.0,0.00016438,2]
[351450638,1738585839720,-500.0,0.00016438,2]
[351450640,1738585839730,-500.0,0.00016438,2]
[351450643,1738585839740,-205.70167593,0.00016438,2]
[351450645,1738585839750,-500.0,0.00016438,2]
[351450647,1738585839759,-500.0,0.00016438,2]
[351450649,1738585839770,-500.0,0.00016438,2]
[351450651,1738585839779,-500.0,0.00016438,2]
[351450653,1738585839789,-527.87139466,0.00016438,2]
[351450655,1738585839799,-500.0,0.00016438,2]
[351450657,1738585839809,-200.0,0.00016438,2]
[351450658,1738585839819,-500.0,0.00016438,2]
[351450659,1738585839828,-194.02296438,0.00016438,2]
[351450660,1738585839839,-500.0,0.00016438,2]
[351450661,1738585839850,-500.0,0.00016438,2]
[351450662,1738585839859,-249.24565799,0.00016438,2]
[351450663,1738585839869,-510.03950299,0.00016438,2]
[351450664,1738585839879,-500.0,0.00016438,2]
[351450665,1738585839888,-500.0,0.00016438,2]
[351450666,1738585839898,-500.0,0.00016438,2]
[351450667,1738585839908,-500.0,0.00016438,2]
[351450668,1738585839919,-500.0,0.00016438,2]
[351450669,1738585839928,-503.07183834,0.00016438,2]
[351450671,1738585839938,-500.0,0.00016438,2]
[351450673,1738585839947,-321.73019168,0.00016438,2]
[351450676,1738585839957,-500.0,0.00016438,2]
[351450678,1738585839967,-500.0,0.00016438,2]
[351450679,1738585839981,-501.35732158,0.00016438,2]
[351450680,1738585839991,-500.0,0.00016438,2]
[351450681,1738585840001,-500.0,0.00016438,2]
[351450682,1738585840011,-500.48503913,0.00016438,2]
[351450683,1738585840020,-500.0,0.00016438,2]
[351450684,1738585840030,-500.0,0.00016438,2]
[351450685,1738585840040,-500.0,0.00016438,2]
[351450686,1738585840052,-500.0,0.00016438,2]
[351450687,1738585840061,-522.14910479,0.00016438,2]
[351450688,1738585840071,-509.73503848,0.00016438,2]
[351450689,1738585840080,-500.0,0.00016438,2]
[351450690,1738585840091,-500.0,0.00016438,2]
[351450691,1738585840100,-500.0,0.00016438,2]
[351450692,1738585840110,-500.0,0.00016438,2]
[351450693,1738585840119,-501.77279125,0.00016438,2]
[351450694,1738585840128,-237.25574396,0.00016438,2]
[351450695,1738585840138,-500.0,0.00016438,2]
[351450696,1738585840147,-502.6421088,0.00016438,2]
[351450697,1738585840157,-421.33391447,0.00016438,2]
[351450698,1738585840167,-500.0,0.00016438,2]
[351450700,1738585840176,-500.0,0.00016438,2]
[351450701,1738585840186,-500.63353653,0.00016438,2]
[351450702,1738585840196,-500.0,0.00016438,2]
[351450703,1738585840205,-500.0,0.00016438,2]
[351450704,1738585840215,-540.91309947,0.00016438,2]
[351450705,1738585840225,-500.0,0.00016438,2]
[351450707,1738585840234,-500.0,0.00016438,2]
[351450709,1738585840244,-500.0,0.00016438,2]
[351450710,1738585840254,-500.0,0.00016438,2]
[351450711,1738585840263,-500.0,0.00016438,2]
[351450712,1738585840272,-500.0,0.00016438,2]
[351450713,1738585840281,-500.0,0.00016438,2]
[351450714,1738585840290,-500.49202771,0.00016438,2]
[351450715,1738585840299,-500.73042443,0.00016438,2]
[351450716,1738585840309,-557.96449907,0.00016438,2]
[351450718,1738585840318,-500.0,0.00016438,2]
[351450720,1738585840328,-500.0,0.00016438,2]
[351450721,1738585840343,-507.73387729,0.00016438,2]
[351450722,1738585840353,-500.0,0.00016438,2]
[351450723,1738585840364,-500.0,0.00016438,2]
[351450724,1738585840374,-500.0,0.00016438,2]
[351450725,1738585840383,-500.0,0.00016438,2]
[351450726,1738585840392,-500.0,0.00016438,2]
[351450727,1738585840402,-500.0,0.00016438,2]
[351450728,1738585840411,-500.0,0.00016438,2]
[351450729,1738585840420,-431.87550414,0.00016438,2]
[351450730,1738585840430,-490.32913366,0.00016438,2]
[351450731,1738585840439,-500.0,0.00016438,2]
[351450732,1738585840448,-500.0,0.00016438,2]
[351450733,1738585840457,-500.0,0.00016438,2]
[351450734,1738585840467,-500.0,0.00016438,2]
[351450735,1738585840478,-500.0,0.00016438,2]
[351450736,1738585840487,-500.0,0.00016438,2]
[351450737,1738585840496,-500.0,0.00016438,2]
[351450738,1738585840505,-500.0,0.00016438,2]
[351450739,1738585840514,-500.0,0.00016438,2]
[351450740,1738585840524,-500.0,0.00016438,2]
[351450741,1738585840534,-500.0,0.00016438,2]
[351450742,1738585840543,-547.40715514,0.00016438,2]
[351450743,1738585840553,-506.14144107,0.00016438,2]
[351450744,1738585840563,-549.33162169,0.00016438,2]
[351450745,1738585840572,-291.69114965,0.00016438,2]
[351450746,1738585840584,-500.0,0.00016438,2]
[351450747,1738585840594,-500.0,0.00016438,2]
[351450748,1738585840603,-500.0,0.00016438,2]
[351450749,1738585840612,-500.0,0.00016438,2]
[351450750,1738585840622,-500.0,0.00016438,2]
[351450751,1738585840631,-500.0,0.00016438,2]
[351450752,1738585840640,-500.0,0.00016438,2]
[351450753,1738585840651,-500.0,0.00016438,2]
[351450754,1738585840660,-500.0,0.00016438,2]
[351450755,1738585840669,-500.0,0.00016438,2]
[351450756,1738585840680,-500.0,0.00016438,2]
[351450757,1738585840689,-500.0,0.00016438,2]
[351450758,1738585840700,-500.0,0.00016438,2]
[351450759,1738585840709,-500.0,0.00016438,2]
[351450760,1738585840720,-500.0,0.00016438,2]
[351450761,1738585840730,-500.0,0.00016438,2]
[351450762,1738585840740,-500.0,0.00016438,2]
[351450763,1738585840750,-500.0,0.00016438,2]
[351450765,1738585840760,-500.0,0.00016438,2]
[351450767,1738585840770,-500.82833501,0.00016438,2]
[351450769,1738585840780,-500.0,0.00016438,2]
[351450771,1738585840790,-500.0,0.00016438,2]
[351450773,1738585840799,-500.0,0.00016438,2]
[351450775,1738585840809,-500.0,0.00016438,2]
[351450777,1738585840819,-519.47124006,0.00016438,2]
[351450779,1738585840828,-500.0,0.00016438,2]
[351450781,1738585840844,-500.0,0.00016438,2]
[351450783,1738585840853,-500.0,0.00016438,2]
[351450786,1738585840863,-500.0,0.00016438,2]
[351450788,1738585840873,-500.0,0.00016438,2]
[351450790,1738585840883,-500.0,0.00016438,2]
[351450792,1738585840893,-500.0,0.00016438,2]
[351450794,1738585840903,-500.0,0.00016438,2]
[351450796,1738585840912,-500.0,0.00016438,2]
[351450798,1738585840922,-500.0,0.00016438,2]
[351450800,1738585840932,-500.0,0.00016438,2]
[351450802,1738585840941,-500.0,0.00016438,2]
[351450804,1738585840951,-502.402042,0.00016438,2]
[351450806,1738585840962,-500.0,0.00016438,2]
[351450808,1738585840972,-500.0,0.00016438,2]
[351450810,1738585840982,-500.0,0.00016438,2]
[351450812,1738585840996,-500.0,0.00016438,2]
[351450814,1738585841006,-500.0,0.00016438,2]
[351450816,1738585841016,-500.0,0.00016438,2]
[351450819,1738585841027,-500.0,0.00016438,2]
[351450821,1738585841039,-586.33077268,0.00016438,2]
[351450823,1738585841049,-500.0,0.00016438,2]
[351450825,1738585841059,-500.0,0.00016438,2]
[351450827,1738585841071,-500.0,0.00016438,2]
[351450829,1738585841087,-500.0,0.00016438,2]
[351450831,1738585841096,-500.0,0.00016438,2]
[351450833,1738585841106,-500.0,0.00016438,2]
[351450835,1738585841115,-500.0,0.00016438,2]
[351450837,1738585841125,-500.0,0.00016438,2]
[351450839,1738585841134,-500.0,0.00016438,2]
[351450841,1738585841145,-500.0,0.00016438,2]
[351450843,1738585841154,-500.0,0.00016438,2]
[351450845,1738585841163,-500.0,0.00016438,2]
[351450847,1738585841172,-500.0,0.00016438,2]
[351450849,1738585841182,-382.63498747,0.00016438,2]
[351450851,1738585841191,-500.0,0.00016438,2]
[351450852,1738585841200,-500.0,0.00016438,2]
[351450854,1738585841209,-500.0,0.00016438,2]
[351450857,1738585841219,-500.0,0.00016438,2]
[351450859,1738585841231,-500.0,0.00016438,2]
[351450861,1738585841241,-500.0,0.00016438,2]
[351450863,1738585841249,-500.0,0.00016438,2]
[351450865,1738585841258,-500.0,0.00016438,2]
[351450867,1738585841267,-500.0,0.00016438,2]
[351450869,1738585841277,-500.0,0.00016438,2]
[351450871,1738585841289,-500.0,0.00016438,2]
[351450873,1738585841299,-500.0,0.00016438,2]
[351450875,1738585841308,-500.0,0.00016438,2]
[351450877,1738585841318,-500.0,0.00016438,2]
[351450879,1738585841327,-500.0,0.00016438,2]
[351450881,1738585841340,-500.0,0.00016438,2]
[351450883,1738585841349,-500.0,0.00016438,2]
[351450885,1738585841358,-500.71412219,0.00016438,2]
[351450887,1738585841367,-500.0,0.00016438,2]
[351450889,1738585841377,-500.0,0.00016438,2]
[351450891,1738585841386,-437.48228254,0.00016438,2]
[351450893,1738585841395,-500.0,0.00016438,2]
[351450895,1738585841404,-500.0,0.00016438,2]
[351450897,1738585841414,-500.0,0.00016438,2]
[351450900,1738585841423,-500.0,0.00016438,2]
[351450902,1738585841433,-507.07363356,0.00016438,2]
[351450903,1738585841443,-500.0,0.00016438,2]
[351450906,1738585841452,-500.0,0.00016438,2]
[351450908,1738585841462,-500.0,0.00016438,2]
[351450910,1738585841471,-500.0,0.00016438,2]
[351450912,1738585841480,-500.0,0.00016438,2]
[351450914,1738585841490,-650.0,0.00016438,2]
[351450916,1738585841499,-500.0,0.00016438,2]
[351450918,1738585841508,-500.0,0.00016438,2]
[351450920,1738585841518,-500.0,0.00016438,2]
[351450922,1738585841527,-500.0,0.00016438,2]
[351450924,1738585841536,-500.0,0.00016438,2]
[351450926,1738585841545,-500.0,0.00016438,2]
[351450928,1738585841554,-500.0,0.00016438,2]
[351450930,1738585841564,-500.0,0.00016438,2]
[351450932,1738585841573,-500.0,0.00016438,2]
[351450934,1738585841584,-500.0,0.00016438,2]
[351450936,1738585841593,-500.0,0.00016438,2]
[351450937,1738585841603,-500.0,0.00016438,2]
[351450939,1738585841612,-450.52609032,0.00016438,2]
[351450941,1738585841622,-506.56217734,0.00016438,2]
[351450943,1738585841632,-500.0,0.00016438,2]
[351450945,1738585841641,-500.0,0.00016438,2]
[351450947,1738585841651,-500.0,0.00016438,2]
[351450949,1738585841660,-500.0,0.00016438,2]
[351450951,1738585841670,-599.27925872,0.00016438,2]
[351450953,1738585841680,-511.52451063,0.00016438,2]
[351450955,1738585841689,-500.0,0.00016438,2]
[351450957,1738585841699,-500.0,0.00016438,2]
[351450959,1738585841708,-500.0,0.00016438,2]
[351450961,1738585841718,-500.0,0.00016438,2]
[351450963,1738585841727,-500.0,0.00016438,2]
[351450965,1738585841737,-500.0,0.00016438,2]
[351450967,1738585841746,-500.0,0.00016438,2]
[351450969,1738585841755,-505.79896452,0.00016438,2]
[351450971,1738585841765,-500.0,0.00016438,2]
[351450973,1738585841775,-500.0,0.00016438,2]
[351450976,1738585841785,-500.0,0.00016438,2]
[351450978,1738585841794,-500.0,0.00016438,2]
[351450980,1738585841804,-500.0,0.00016438,2]
[351450981,1738585841813,-194.64290735,0.00016438,2]
[351450983,1738585841823,-500.0,0.00016438,2]
[351450986,1738585841835,-210.4897483,0.00016438,2]
[351450988,1738585841844,-291.50153671,0.00016438,2]
[351450990,1738585841854,-500.0,0.00016438,2]
[351450992,1738585841863,-500.0,0.00016438,2]
[351450994,1738585841873,-500.0,0.00016438,2]
[351450995,1738585841882,-510.23505452,0.00016438,2]
[351450998,1738585841892,-500.0,0.00016438,2]
[351451000,1738585841901,-500.0,0.00016438,2]